Cogmind - Beta 14 @@@ ROGUE MODE // 2024.10.09 @ 22:47:50 Player: EgorIV Result: Destroyed by S-10 Pest with Light Assault Rifle Performance ------------- Evolutions (0) 0 Regions Visited (2) 400 Robots Destroyed (1) 5 Value Destroyed (16) 16 Prototype IDs (0) 0 Alien Tech Used (0) 0 Bonus (39) 39 TOTAL SCORE: 460 Bonus ------- Follower Combat Kills 39 Cogmind --------- Core Integrity 0/250 Matter 221/300 Energy 100/100 System Corruption 0% Temperature Cool (1) Movement Flying (35) Location -10/Mines Parts ------- > --- POWER (1) -------- (None) > --- PROPULSION (2) --- VTOL Module > --- UTILITY (2) ------ Signal Interpreter > --- WEAPON (2) ------- Flail > --- INVENTORY (5) ---- Ion Engine Ion Engine Assault Rifle Peak State ------------ > --- POWER ------------ (None) > --- PROPULSION ------- VTOL Module VTOL Module > --- UTILITY ---------- Signal Interpreter > --- WEAPON ----------- Flail > --- INVENTORY -------- Ion Engine Ion Engine VTOL Module VTOL Module Assault Rifle [Rating: 7] Favorites ----------- Power Ion Engine Engine Ion Engine Propulsion Wheel Wheel Wheel Hover Unit Hover Unit Flight Unit VTOL Module Utility Small Storage Unit Storage Small Storage Unit Processor Signal Interpreter Weapon EM Pulse Gun Energy Gun EM Pulse Gun Ballistic Gun Assault Rifle Impact Weapon Flail Build | -11 -10 -10 ------- Run | Yrd Mat Min Slots Evolved . | . . . Power . | . . . Propulsion . | . . . Utility . | . . . Weapon . | . . . Parts Attached 14 | 6 6 2 Power 1 | 1 . . Engine 1 | 1 . . Core . | . . . Reactor . | . . . Propulsion 8 | 2 4 2 Treads . | . . . Leg . | . . . Wheel 2 | 2 . . Hover 1 | . 1 . Flight 5 | . 3 2 Utility 2 | 1 1 . Device . | . . . Storage 1 | 1 . . Processor 1 | . 1 . Hackware . | . . . Protection . | . . . Artifact . | . . . Weapon 3 | 2 1 . Energy Gun 1 | 1 . . Energy Cannon . | . . . Ballistic Gun 1 | 1 . . Ballistic Cannon . | . . . Launcher . | . . . Special Weapon . | . . . Impact Weapon 1 | . 1 . Slashing Weapon . | . . . Piercing Weapon . | . . . Special Melee Weapon . | . . . Unidentified Prototypes . | . . . Parts Lost 4 | . 1 3 Power . | . . . Propulsion 3 | . . 3 Utility . | . . . Weapon 1 | . 1 . Highest Loss Streak 4 | . 1 4 To Critical Strikes . | . . . Average Slot Usage (%) 55 | . 67 43 Engine 1 | . 3 . Wheel 7 | . 15 . Hover 4 | . 9 . Flight 9 | . 3 15 Storage 1 | . 3 . Processor 10 | . 7 14 Energy Gun 5 | . 10 . Ballistic Gun 5 | . 10 . Impact Weapon 8 | . 3 14 Peak Build Rating 7 | 6 7 7 Average Rating 5 | 5 5 5 On Entrance 4 | . 6 7 Naked Turns . | . . . Heaviest Build 14 | 14 14 2 Greatest Support 20 | 20 20 8 Greatest Overweight (x) . | . . . Average Overweight (x) . | . . . Largest Inventory Capacity 8 | 8 8 5 Average Capacity 6 | 7 5 5 Most Carried 5 | 5 5 5 Average Carried 2 | 1 2 3 Final Capacity 8 | 8 5 5 Final Carried 5 | 1 5 3 Class Distribution -------------------- 100% | Mutant Dominant Class ---------------- Mutant | -10/Materials Mutant | -10/Mines Resources | -11 -10 -10 ----------- Run | Yrd Mat Min Matter Collected 253 | 212 23 18 Remotely . | . . . Salvage Created 33 | . 15 18 Parts 3 | . 3 . Haulers Intercepted . | . . . Recyclers Shooed . | . . . Parts Field Recycled . | . . . Retrieved Matter . | . . . Parts Self-Destructed . | . . . Prevented . | . . . Kills | -11 -10 -10 ------- Run | Yrd Mat Min Combat Hostiles Destroyed 1 | . . 1 Melee 1 | . . 1 Classes Destroyed 2 | . 1 1 Watcher 1 | . 1 . Assembled 1 | . . 1 Best Kill Streak 1 | . 1 1 Combat Bots Only 1 | . . 1 Max Kills in Single Turn 1 | . 1 1 Gunslinging . | . . . Exploded . | . . . Melee 1 | . . 1 Uniques/NPCs Destroyed . | . . . Combat | -11 -10 -10 -------- Run | Yrd Mat Min Hostile Shots Fired 75 | . 39 36 Missed 30 | . 16 14 Damage Taken 508 | . 185 323 Core 250 | . 64 186 Absorbed by Shields . | . . . Core Remaining (%) 100 | 100 . . Volleys Fired 4 | . 4 . Largest 2 | . 2 . Hottest 60 | . 60 . Shots Fired 8 | . 8 . Gun 8 | . 8 . Cannon . | . . . Launcher . | . . . Special . | . . . Kinetic 4 | . 4 . Thermal . | . . . Explosive . | . . . Electromagnetic 4 | . 4 . Robot Hit Streak 2 | . 2 . Robot Miss Streak 4 | . 4 . Penetration Max . | . . . Secondary Targets . | . . . Shots Hit Robots 3 | . 2 1 Core Hits 1 | . 1 . Critical Kills . | . . . Critical Parts Destroyed . | . . . Critical Strikes . | . . . Melee Attacks 1 | . . 1 Impact 1 | . . 1 Slashing . | . . . Piercing . | . . . Sneak Attacks . | . . . Combat Hostiles . | . . . Follow-up Attacks . | . . . Damage Inflicted 87 | . 37 50 Guns 37 | . 37 . Cannons . | . . . Explosions . | . . . Melee 50 | . . 50 Ramming . | . . . Kinetic 15 | . 15 . Thermal . | . . . Explosive . | . . . Electromagnetic 22 | . 22 . Impact 50 | . . 50 Slashing . | . . . Piercing . | . . . Highest Corruption . | . . . Average Corruption . | . . . Corruption Purged . | . . . Corruption Blocked . | . . . Overload Shots . | . . . Overflow Damage 27 | . . 27 Projectiles . | . . . Explosions . | . . . Melee 27 | . . 27 Knockbacks . | . . . Impact . | . . . Kinetic . | . . . Secondary . | . . . Self-Inflicted Damage . | . . . Shots . | . . . Rammed . | . . . Targets Rammed . | . . . Kicked . | . . . Crushed . | . . . Highest Temperature 41 | . . 41 Average Temperature 24 | . . 24 Received Heat Transfer 140 | . . 140 Siege Activations . | . . . Robots Corrupted . | . . . Combat Hostiles . | . . . Parts Fried . | . . . Impact Corruptions 1 | . . 1 Robots Melted . | . . . Combat Hostiles . | . . . Parts Melted . | . . . Heat Transferred . | . . . Parts Sabotaged . | . . . Parts Stolen . | . . . Parts Stripped . | . . . Power Chain Reactions . | . . . Alert | -11 -10 -10 ------- Run | Yrd Mat Min Peak Influence 37 | . 37 32 Initial 10 | . . 10 Average 7 | . 11 15 Maximum Alert Level . | . . . Low Security (%) 100 | 100 100 100 Level 1 . | . . . Level 2 . | . . . Level 3 . | . . . Level 4 . | . . . Level 5 . | . . . High Security . | . . . Max Security . | . . . Squads Dispatched . | . . . Investigation . | . . . Extermination . | . . . Reinforcement . | . . . Assault . | . . . Garrison . | . . . Intercept . | . . . Searches Triggered . | . . . Construction Impeded . | . . . Haulers Reinforced . | . . . Active Scanning Responses . | . . . Cargo Convoy Interrupts . | . . . Stealth | -11 -10 -10 --------- Run | Yrd Mat Min Distress Signals . | . . . Communications Jammed . | . . . Distress Signals . | . . . Times Spotted 51 | . 7 44 Peak Tracking Total 21 | . 5 21 Tactical Retreats 4 | . 1 3 Traps | -11 -10 -10 ------- Run | Yrd Mat Min Traps Triggered . | . . . Indirectly . | . . . Trap Hack Attempts . | . . . Triggered . | . . . Disarmed . | . . . Reprogrammed . | . . . Reused . | . . . Traps Extracted . | . . . Installed . | . . . Triggered . | . . . Machines | -11 -10 -10 ---------- Run | Yrd Mat Min Machines Disabled . | . . . Max in Single Turn . | . . . Machines Repaired . | . . . Machines Dismantled . | . . . Machines Sabotaged . | . . . Overloaded Fab Kills . | . . . Hacking | -11 -10 -10 --------- Run | Yrd Mat Min Machines Accessed . | . . . Terminals . | . . . Fabricators . | . . . Repair Stations . | . . . Recycling Units . | . . . Scanalyzers . | . . . Garrison Access . | . . . Total Hacks . | . . . Successful . | . . . Failed . | . . . Catastrophic . | . . . Database Lockouts . | . . . Manual . | . . . Terminals . | . . . Fabricators . | . . . Repair Stations . | . . . Recycling Units . | . . . Scanalyzers . | . . . Garrison Access . | . . . Terminal Hacks . | . . . Fabricator Hacks . | . . . Repair Station Hacks . | . . . Recycling Unit Hacks . | . . . Scanalyzer . | . . . Garrison Access Hacks . | . . . Unauthorized Hacks . | . . . Terminals . | . . . Fabricators . | . . . Repair Stations . | . . . Recycling Units . | . . . Scanalyzers . | . . . Garrison Access . | . . . Data Cores Recovered . | . . . Used . | . . . Hacking Detections . | . . . Full Trace Events . | . . . Feedback Events . | . . . Feedback Blocked . | . . . Robot Schematics Acquired . | . . . Robots Built . | . . . Authchips . | . . . Time . | . . . Total Robot Build Rating . | . . . Part Schematics Acquired . | . . . Parts Built . | . . . Authchips . | . . . Time . | . . . Total Part Build Rating . | . . . Parts Repaired . | . . . Time . | . . . Parts Recycled . | . . . Recycled Matter . | . . . Retrieved Matter . | . . . Retrieved Components . | . . . Parts Scanalyzed . | . . . Part Schematics Acquired . | . . . Parts Damaged . | . . . Bothacking | -11 -10 -10 ------------ Run | Yrd Mat Min Used RIF Installer . | . . . Robots Hacked . | . . . Non-combat . | . . . Combat . | . . . Robot Hacks Applied . | . . . Relay Couplers Released . | . . . Fabnet Peak Effective % . | . . . Robots Rewired . | . . . Allies Hacked . | . . . Hacks Repelled . | . . . Allies | -11 -10 -10 -------- Run | Yrd Mat Min Total Allies 2 | . . 2 Largest Group 1 | . . 1 Highest-Rated Group 31 | . . 31 Highest-Rated Ally 31 | . . 31 Total Orders . | . . . Ally Attacks 12 | . . 12 Total Damage 193 | . . 193 Kills 1 | . . 1 Allies Corrupted . | . . . Allies Melted . | . . . Intel | -11 -10 -10 ------- Run | Yrd Mat Min Robot Analysis Total . | . . . Derelict Logs Recovered 2 | . . 2 Drone Launches . | . . . Drone Recoveries . | . . . Exploration | -11 -10 -10 ------------- Run | Yrd Mat Min Turns Passed 329 | 157 83 89 Spaces Moved 348 | 35 89 224 Core 10 | 10 . . Treads . | . . . Legs . | . . . Wheels 47 | 25 22 . Hover 51 | . 51 . Flight 240 | . 16 224 Fastest Speed 32 | 50 32 32 Average Speed 45 | 71 62 34 Slowest Speed 80 | 80 80 35 Overloaded Moves . | . . . Propulsion Burnouts . | . . . Robots Hopped . | . . . Cave-ins Triggered . | . . . Exploration Rate (%) 29 | 6 24 58 Regions Visited 2 Branch Regions 1 Pre-discovered Areas . | . . . Known Exits Taken 1 | . 1 . Unknown Exits Taken 1 | 1 . . Scrap Searched 1 | . . 1 Spaces Dug . | . . . Terrain Destroyed . | . . . Melee . | . . . Projectile . | . . . AOE . | . . . Terrain Rammed . | . . . Walls Destroyed . | . . . Machines Disabled . | . . . Actions | -11 -10 -10 --------- Run | Yrd Mat Min Total 506 | 166 107 233 Wait 126 | 120 . 6 Move 346 | 34 88 224 Hop . | . . . Pick Up 11 | 6 5 . Fast Attach 1 | 1 . . Attach 9 | 5 2 2 Detach 1 | . 1 . Swap 4 | . 4 . Drop 3 | . 3 . Fire 4 | . 4 . Melee 1 | . . 1 Ram . | . . . Kick . | . . . Crush . | . . . Escape Stasis . | . . . Rewire . | . . . Trap . | . . . Miscellaneous . | . . . Route ------- -11/Scrapyard -10/Materials -10/Mines (discovered 1 exit: [*Mat]) History --------- Turn | Location | Event 24 | -11/Scrapyard | Discovered new exit (range 14) 158 | -11/Scrapyard | Entered Materials 189 | -10/Materials | Discovered new exit (range 16) 218 | -10/Materials | Identified exit to Mines 241 | -10/Materials | Entered Mines 242 | -10/Mines | Assembled infested the area 242 | -10/Mines | Discovered new exit (range 8) 247 | -10/Mines | Assisted by a Guerilla fighting off Assembled 252 | -10/Mines | Core integrity fell below 50% 254 | -10/Mines | Learned location of 1 exit from Materials 280 | -10/Mines | Learned 8 Materials zone layouts 282 | -10/Mines | Lost 4 parts (3n1w) 310 | -10/Mines | Build established: Mutant 325 | -10/Mines | Core integrity fell below 20% 330 | -10/Mines | Destroyed by S-10 Pest with Light Assault Rifle Last Messages --------------- VTOL Module destroyed. A pair of derelicts emerge from the shadows: "We're, um, lost. You wouldn't happen to know the way out of here, would you?" D-53 Grenadier suffers critical hit (Burn). AS-5N2(h): "I'll hold them off! Go on ahead or try to find another way!" HV Slug penetrates Wall. [Achievement: Hunted] VTOL Module destroyed. Acquired derelict log, extracted data. Data stored: Materials exits (x1). Acquired derelict log, extracted data. Data stored: Materials zone layouts (x8). as-28844 sneak attacks. T-07 Excavator destroyed. Destroyed Asb. Hover Unit. as-65594 system corrupted by crushing effect. as-65594 destroyed. Acquired 18 matter. Map ----- +----------------------------------------------------+ | ????????## ##????????## ##?## #?? | | ????####?## #?????????####???# #?? | | ???## #### #????????????????# ##? | | ???# ## ##????????????????# #? | | ???# ###?????????????????# #? | | #?## ##???????????????????# #? | | ## #????????????????????# #? | | #????????????????????# #? | | ##???????????????##### #? | | """ ###????????????## |%= ##? | | """ ## ##????????#### #?? | | """ #### ########## #?? | | #??# #?? | | ##??# #### ###### ##?? | | ##???## ##??# #????## ##??? | | ## #?????## ##???# #?????## #???? | | ## #??????# #????#=%#??????## ##???? | | #?????# #????# ###?????#######????? | | ####????# #???# #????????????????? | | ????????# #??#### ###??????????????? | | ????????## #?????# #??????????????? | | ?????????#### #?????## #??????????????? | | ????????????## ##??????# #??????????????? | | ??????????????###???????# #??????????????? | | ????????????????????????# #??????????????? | | ????????????????????????#@s#??????????????? | | ????????????????????????#ss#??????????????? | | ????????????????????????# #?????????????? | | ????????????????????????# #????????????? | | ????????????????????????## ???????????? | | ??????????????????????????# ??????????? | | ???????????????????????????# ?????????? | | ????????????????????????????# ????????? | | ?????????????????????????????# # ???????? | | ??????????????????????????????####?#??????? | | ??????????????????????????????????????????? | | ??????????????????????????????????????????? | | ??????????????????????????????????????????? | | ??????????????????????????????????????????? | | ??????????????????????????????????????????? | | ??????????????????????????????????????????? | | ??????????????????????????????????????????? | | ??????????????????????????????????????????? | | ??????????????????????????????????????????? | | ??????????????????????????????????????????? | | ??????????????????????????????????????????? | | ??????????????????????????????????????????? | | ??????????????????????????????????????????? | | ??????????????????????????????????????????? | | ??????????????????????????????????????????? | +----------------------------------------------------+ Best States ------------- Heat Dissipation 25 Energy Generation 10 Energy Capacity 250 Matter Stores 252 Matter Capacity 300 Sight Range 16 Terrain Scan Density 10 Evasion (%) 63 Item Schematics ----------------- None Robot Schematics ------------------ None Fabricated ------------ Nothing Alien Tech Used ----------------- None Achievements -------------- Hunted Challenges ------------ None Game ------ Seed XenonSubdwellerSuite Manual? 0 Play Time 00:09:22 Cumulative 23.0 hours Start 2024.10.09 @ 22:39:33 End 2024.10.09 @ 22:47:50 Sessions 1 Manual Loads 0 Difficulty Rogue Special Mode None Game No. 8 Rogue 1 Adventurer 7 Explorer 0 Win Type - Total 0 Types 0/0/0/0/0/0/0/0/0 Lore% 8 Gallery% 21 Achievement% 22 Wizard Run 0 Options --------- Layout 1 ASCII 0 Keyboard 0 Movement Mouse Keybinds 0 Fullscreen 1 Font 32/SmallcapsGlow Map View 50x40 Zoom Use 0% Tactical HUD 0 Map Filters NONE Filters NONE Steam 0 RUN: b7a600f9-9241-45c3-97d4-115b3f30ef6d